bitfinex/quotes_ETHUSD_20260107
["timestamp","ask_amount","ask_price","bid_price","bid_amount"]
[1767775961042,0.93679555,3256.0,3255.0,0.001]
[1767775961444,3.0713474,3255.9,3255.0,0.001]
[1767775961645,0.93679555,3255.7,3255.0,0.001]
[1767775962271,0.93679555,3255.7,3254.0,3.1038631]
[1767775962576,0.93679555,3255.7,3254.0,0.0307314]
[1767775962752,0.93679555,3255.7,3254.4,4.06374549]
[1767775963152,0.93679555,3255.7,3254.4,0.99101486]
[1767775963678,0.4008143,3255.8,3254.4,0.99101486]
[1767775963679,7.08005639,3255.6,3254.4,0.99101486]
[1767775963879,1.51300564,3255.5,3254.4,0.99101486]
[1767775964884,1.51300564,3255.5,3254.4,4.06375949]
[1767775965064,1.51300564,3255.5,3254.4,0.99101486]
[1767775965781,1.51300564,3255.5,3254.2,3.07389292]
[1767775965782,0.93679555,3255.3,3254.2,0.001]
[1767775965984,0.93679555,3255.1,3254.2,0.001]
[1767775966592,0.28650054,3255.0,3252.9,0.03074179]
[1767775966789,0.93679555,3254.8,3253.1,0.99101486]
[1767775967085,0.93679555,3254.8,3253.2,3.07389207]
[1767775967282,1.02906633,3254.6,3253.1,0.99101486]
[1767775967788,0.93679555,3254.4,3253.1,0.99101486]
[1767775967948,1.74179555,3254.3,3253.1,0.99101486]
[1767775969321,0.93679555,3254.2,3253.1,0.99101486]
[1767775969809,0.93679555,3254.0,3252.7,0.99101486]
[1767775970101,0.70828882,3253.9,3252.7,0.99101486]
[1767775970504,0.70828882,3253.9,3252.9,0.99101486]
[1767775971003,1.64508437,3253.9,3252.9,0.99101486]
[1767775971414,0.93679555,3253.8,3252.7,3.07433899]
[1767775971626,0.93679555,3253.8,3252.4,0.805]
[1767775971899,3.07361303,3253.5,3252.5,4.24513948]
[1767775972101,3.07361303,3253.5,3252.6,0.99101486]
[1767775973967,3.23796766,3253.7,3252.6,0.99101486]
[1767775973968,3.07351856,3253.6,3252.6,0.99101486]
[1767775974865,3.07351856,3253.6,3252.6,4.06544631]
[1767775975500,4.04296777,3253.7,3252.7,1.02175854]
[1767775975674,7.1164271,3253.7,3252.8,0.99101486]
[1767775976293,4.04296777,3253.7,3252.8,0.99101486]
[1767775977269,4.04296777,3253.7,3252.8,4.06528514]
[1767775978299,4.04296777,3253.7,3252.8,0.99101486]
[1767775978500,0.71162999,3253.6,3252.8,0.99101486]
[1767775980033,0.71162999,3253.6,3252.9,0.001]
[1767775980369,0.71162999,3253.6,3252.9,4.05420139]
[1767775980703,3.23795677,3253.7,3253.0,0.94831798]
[1767775981164,6.31143602,3253.7,3253.0,0.94831798]
[1767775981496,0.96491352,3253.6,3252.9,0.001]
[1767775982492,0.92620185,3253.4,3252.9,0.001]
[1767775982670,3.07361303,3253.5,3252.9,0.001]
[1767775982871,0.61471459,3253.4,3252.9,0.001]
[1767775985009,3.6884399,3253.4,3252.9,0.001]
[1767775985210,0.61471459,3253.4,3252.9,0.001]
[1767775986105,0.806,3253.6,3252.9,1.0006045]
[1767775986311,3.23798732,3253.7,3252.9,1.0006045]
[1767775987278,6.31146857,3253.7,3252.9,1.0006045]
[1767775987505,3.23798732,3253.7,3252.9,1.0006045]
[1767775987736,0.92620185,3254.3,3253.0,1.03034535]
[1767775987879,1.73220185,3254.3,3253.0,1.03034535]
[1767775988291,3.07276302,3254.4,3253.0,1.03034535]
[1767775988710,6.14552604,3254.4,3253.0,1.03034535]
[1767775988875,3.86053581,3254.4,3253.2,0.9996045]
[1767775989414,3.86053581,3254.4,3253.4,0.9996045]
[1767775989611,0.78777279,3254.4,3253.4,0.9996045]
[1767775989913,3.07256314,3254.7,3253.4,0.9996045]
[1767775989914,0.806,3254.7,3253.4,0.9996045]
[1767775990290,3.99839847,3255.0,3253.5,0.9996045]
[1767775990477,4.80439847,3255.0,3253.5,0.9996045]
[1767775990882,7.87659509,3255.0,3253.5,0.9996045]
[1767775991292,4.80439847,3255.0,3253.7,0.9996045]
[1767775991496,4.80439847,3255.0,3253.9,0.9996045]
[1767775991693,7.87659509,3255.0,3253.9,0.9996045]
[1767775991899,4.80439847,3255.0,3253.9,0.9996045]
[1767775992611,7.87659509,3255.0,3253.9,0.9996045]
[1767775994317,0.92620185,3254.9,3253.8,0.71466416]
[1767775994509,0.92620185,3254.7,3253.3,3.0737972]
[1767775994817,1.01847263,3254.7,3252.6,0.9996045]
[1767775995126,1.01847263,3254.7,3252.9,3.07517152]
[1767775995127,1.01847263,3254.5,3252.9,3.07517152]
[1767775995310,0.92620185,3254.3,3252.9,3.07517152]
[1767775995614,0.92620185,3254.1,3252.9,3.07509489]
[1767775995925,0.92620185,3254.1,3253.0,3.07401378]
[1767775996886,0.92620185,3254.1,3252.9,0.001]
[1767775996887,0.92620185,3253.9,3252.9,0.001]
[1767775998927,3.07312389,3254.1,3253.0,0.9996045]
[1767775999137,3.07312389,3254.1,3252.9,6.18010171]
[1767775999138,4.97838514,3254.2,3253.2,1.0006045]
[1767775999307,4.97838514,3254.2,3253.3,0.03073801]
[1767775999507,0.49783851,3254.1,3253.3,1.03034251]
[1767775999828,4.05218329,3254.2,3253.3,1.03034251]
[1767776000030,4.05218329,3254.2,3253.4,0.03073707]
[1767776000831,4.05218329,3254.2,3253.3,0.9996045]
[1767776001137,0.09227078,3254.9,3253.5,0.9996045]
[1767776001138,3.87868143,3254.5,3253.5,0.9996045]
[1767776001342,6.95141084,3254.5,3253.6,0.9996045]
[1767776002243,0.92620185,3254.4,3253.4,3.0737075]
[1767776002829,3.07285745,3254.3,3253.4,3.0737075]
[1767776003708,0.002,3254.1,3253.4,3.0737075]
[1767776003908,0.002,3254.1,3253.5,0.03073613]
[1767776004113,0.002,3254.1,3253.5,1.03034063]
[1767776004309,0.002,3254.1,3253.5,0.9996045]
[1767776006222,0.002,3254.1,3253.2,4.07449219]
[1767776006223,0.92820185,3254.1,3253.2,4.07449219]
[1767776006438,0.92820185,3254.1,3253.2,0.001]
[1767776007051,0.92820185,3254.1,3253.3,3.07378283]
[1767776007561,0.92820185,3254.1,3253.4,3.07370596]
[1767776007758,0.002,3254.1,3253.4,4.38078106]
[1767776007958,0.002,3254.1,3253.4,4.41151813]
[1767776008822,0.002,3254.1,3253.4,1.3070751]
[1767776009436,0.002,3254.1,3253.4,0.9996045]
[1767776009647,0.002,3254.1,3253.3,3.07372684]
[1767776010639,0.002,3254.1,3253.2,6.14879294]
[1767776011453,0.002,3254.1,3253.3,0.03073801]
[1767776011653,0.002,3254.1,3253.2,7.14839744]
[1767776011959,0.002,3254.1,3253.3,0.71483974]
[1767776012325,0.002,3254.1,3253.3,1.63936613]
[1767776013055,0.002,3254.1,3253.4,3.0737075]
[1767776013268,0.002,3254.1,3253.4,3.10444457]
[1767776014764,0.96121478,3254.1,3253.4,3.10444457]
[1767776015065,0.96121478,3254.1,3253.3,0.71483974]
[1767776015066,0.96121478,3254.1,3253.3,3.7886111]
[1767776015730,0.96121478,3254.1,3253.3,4.71313749]
[1767776015935,0.96121478,3254.1,3253.4,0.77880307]
[1767776017268,0.96121478,3254.1,3253.7,0.001]
[1767776017680,4.03428483,3254.1,3253.7,0.001]
[1767776018534,0.96121478,3254.1,3253.7,0.001]
[1767776019174,0.002,3254.1,3253.7,0.001]
[1767776021871,0.002,3254.1,3253.7,0.92552639]
[1767776022073,0.002,3254.4,3253.9,0.92452639]
[1767776023053,0.002,3254.4,3253.7,0.001]
[1767776023480,0.96121478,3254.4,3253.7,3.0744241]
[1767776023641,0.96121478,3254.4,3253.8,0.70724288]
[1767776024043,0.96121478,3254.4,3253.7,0.001]
[1767776027548,0.002,3254.4,3253.7,0.92552639]
[1767776028347,0.002,3254.4,3253.9,0.92452639]
[1767776028553,0.002,3254.4,3253.9,3.9977597]
[1767776028884,0.002,3254.4,3254.0,0.39977597]
[1767776030352,0.002,3254.4,3253.9,0.92452639]
[1767776030773,0.002,3254.4,3253.7,0.001]
[1767776031086,0.002,3254.1,3253.7,0.001]
[1767776036918,0.95921478,3254.0,3253.2,0.001]
[1767776037078,0.807,3254.1,3253.2,0.001]
[1767776037079,0.95921478,3253.8,3253.2,0.001]
[1767776038069,0.95921478,3253.6,3253.2,0.001]
[1767776040208,0.94073012,3253.4,3253.2,0.001]
[1767776041008,3.07361303,3253.5,3253.2,0.001]
[1767776041801,3.07361303,3253.5,3252.9,0.001]
[1767776041802,0.94130283,3253.4,3252.9,0.001]
[1767776042008,0.94130283,3253.2,3252.9,0.001]
[1767776042175,0.94130283,3253.4,3252.9,0.001]
[1767776042669,0.806,3253.5,3252.9,0.001]
[1767776043496,3.07350708,3253.7,3252.9,0.96760172]
[1767776043700,0.98262148,3253.9,3252.9,0.96760172]
[1767776044199,0.98262148,3253.9,3253.1,0.93585993]
[1767776044620,0.17662148,3253.9,3253.1,0.93585993]
[1767776046084,3.24986929,3253.9,3253.1,0.93585993]
[1767776046392,0.17662148,3253.9,3253.3,0.93585993]
[1767776046900,0.002,3254.1,3253.3,0.93585993]
[1767776048466,0.002,3254.1,3253.5,0.93585993]
[1767776051200,0.002,3254.1,3253.6,0.93585993]
[1767776054803,0.002,3254.1,3253.7,0.93585993]
[1767776054980,0.002,3253.8,3253.7,0.93585993]
[1767776055179,0.94330283,3254.1,3253.7,0.40093747]
[1767776055587,0.002,3254.1,3253.7,1.3367974]
[1767776055793,0.002,3254.1,3253.8,0.93585993]
[1767776059096,0.94330283,3254.1,3253.3,0.93585993]
[1767776059286,0.94330283,3254.1,3253.3,4.49120938]
[1767776059492,0.94330283,3254.1,3253.4,0.93585993]
[1767776060022,0.94330283,3254.1,3253.3,0.48156733]
[1767776060515,0.94330283,3254.1,3253.3,4.00960061]
[1767776060822,0.002,3254.1,3253.3,0.93585993]
[1767776060996,0.002,3254.1,3253.6,0.93585993]
[1767776061411,0.002,3254.1,3253.7,0.93585993]
[1767776061715,0.002,3254.4,3253.7,0.93585993]
[1767776061926,0.002,3254.4,3253.8,0.40093516]
[1767776062414,0.002,3254.4,3253.8,1.33679509]
[1767776065688,0.94330283,3254.4,3253.8,0.40093516]
[1767776065884,0.94330283,3254.4,3253.1,0.806]
[1767776066295,0.94330283,3254.4,3252.9,0.93685993]
[1767776066517,0.94330283,3254.4,3252.9,0.96760172]
[1767776066823,0.94330283,3254.4,3254.1,0.001]
[1767776068308,0.94130283,3254.2,3254.1,0.001]
[1767776069331,1.65019717,3254.2,3254.1,0.001]
[1767776070339,4.72314904,3254.2,3254.1,0.001]
[1767776070705,0.94130283,3254.1,3253.4,0.93585993]
[1767776071028,0.94130283,3254.1,3253.4,4.00955114]
[1767776071201,3.07295187,3254.2,3253.4,4.00955114]
[1767776071526,3.07295187,3254.2,3253.5,1.33681504]
[1767776072126,3.98244402,3254.3,3253.5,1.33681504]
[1767776072526,3.98244402,3254.3,3253.5,0.40095511]
[1767776072527,0.90956231,3254.2,3253.5,0.40095511]
[1767776072706,0.90956231,3254.2,3253.3,0.90093423]
[1767776072905,0.90956231,3254.2,3253.4,3.07364527]
[1767776073105,0.90956231,3254.2,3253.4,3.9745795]
[1767776073403,0.90956231,3254.2,3253.5,3.97453749]
[1767776074015,0.90956231,3254.2,3253.5,0.90093423]
[1767776075935,0.90956231,3254.2,3253.5,3.97454306]
[1767776076636,3.98255728,3254.2,3253.5,0.90093423]
[1767776078103,0.90956231,3254.0,3253.1,0.90093423]
[1767776078300,0.90956231,3254.0,3252.9,0.001]
[1767776078301,0.90956231,3253.9,3252.9,0.90193423]
[1767776078723,0.90956231,3253.6,3252.9,0.90193423]
[1767776079528,0.90956231,3253.6,3252.9,3.97609082]
[1767776079838,0.90956231,3253.6,3252.9,0.90193423]
[1767776080313,3.98312952,3253.6,3252.9,0.90193423]
[1767776080646,0.90956231,3253.5,3252.9,0.001]
[1767776082378,9.08015238,3253.6,3252.9,0.90193423]
[1767776082379,0.7056493,3253.6,3252.9,0.90193423]
[1767776082544,3.87923519,3253.9,3253.1,0.90093423]
[1767776083164,0.90956231,3253.8,3253.1,0.90093423]
[1767776083850,0.90956231,3253.8,3252.9,0.90193423]
[1767776084164,0.90956231,3253.7,3252.9,0.90193423]
[1767776085068,3.98300725,3253.7,3253.0,0.90093423]
[1767776085251,3.98300725,3253.7,3252.9,3.07516854]
[1767776085252,0.90956231,3253.6,3252.9,3.07516854]
[1767776085428,0.90956231,3253.6,3252.9,0.001]
[1767776090564,0.90956231,3253.6,3252.9,3.97611013]
[1767776090860,0.90956231,3253.6,3252.9,4.68115789]
[1767776091231,3.98309469,3253.6,3253.2,0.001]
[1767776095272,3.98309469,3253.6,3252.9,0.90193423]
[1767776096154,0.90956231,3253.5,3252.9,0.001]
[1767776097368,0.90956231,3253.3,3252.9,0.001]
[1767776098569,1.61525308,3253.3,3252.9,0.001]
[1767776098736,0.90956231,3253.3,3252.9,0.001]
[1767776099067,3.07364186,3253.5,3252.9,0.001]
[1767776100663,3.07364186,3253.5,3252.9,0.93762696]
[1767776100859,3.87955771,3253.6,3252.9,0.93762696]
[1767776101170,0.38795577,3253.5,3252.9,0.93762696]
[1767776101367,0.38795577,3253.5,3253.0,0.93662696]
[1767776101538,0.806,3253.7,3253.0,0.93662696]
[1767776101738,3.87944852,3253.7,3253.0,0.93662696]
[1767776102153,3.07344852,3253.7,3253.0,0.93662696]
[1767776103771,3.07344852,3253.7,3253.2,0.001]
[1767776103976,0.74316603,3253.6,3253.2,0.001]
[1767776104574,0.74316603,3253.6,3253.2,0.94923642]
[1767776104874,3.07344852,3253.7,3253.2,0.94923642]
[1767776107951,0.92996935,3253.6,3253.2,0.001]
[1767776109476,0.92996935,3253.5,3252.9,0.001]
[1767776109691,0.92996935,3253.3,3252.4,0.94823642]
[1767776110061,3.07389647,3253.2,3252.1,0.94823642]
[1767776110251,3.07389647,3253.2,3252.2,0.94823642]
[1767776110252,0.92996935,3253.1,3252.2,0.94823642]
[1767776110650,0.92996935,3253.1,3252.1,0.7098487]
[1767776110870,0.92996935,3253.1,3252.1,1.65808512]
[1767776111352,0.92996935,3253.1,3252.2,0.94823642]
[1767776112717,0.92996935,3253.1,3252.4,0.94823642]
[1767776113077,4.00396314,3253.1,3252.4,0.94823642]
[1767776113973,4.00358942,3253.5,3252.5,0.94823642]
[1767776114297,4.80958942,3253.5,3252.5,0.94823642]
[1767776114494,3.0737075,3253.4,3252.5,0.94823642]
[1767776114674,3.0737075,3253.4,3252.6,0.94823642]
[1767776114877,6.147415,3253.4,3252.6,0.94823642]
[1767776115061,6.93575344,3253.4,3252.6,0.94823642]
[1767776115264,3.86204594,3253.4,3252.6,0.94823642]
[1767776115560,0.78833844,3253.4,3252.6,0.94823642]
[1767776115874,0.78833844,3253.4,3252.8,0.94823642]
[1767776116090,3.07365193,3253.5,3252.8,0.94823642]
[1767776116663,0.002,3253.4,3252.8,0.94823642]
[1767776117611,0.002,3253.4,3252.9,0.94823642]
[1767776119116,0.002,3253.4,3253.0,0.94823642]
[1767776120415,0.002,3253.4,3252.7,4.02256937]
[1767776120621,0.002,3253.4,3252.8,0.94823642]
[1767776121414,0.002,3253.4,3252.8,4.02248355]
[1767776121615,0.002,3253.4,3252.9,0.94823642]
[1767776124420,0.002,3253.4,3252.9,4.02239764]
[1767776124719,0.002,3253.4,3253.0,0.94823642]
[1767776124920,0.002,3253.4,3253.0,1.35047618]
[1767776125123,0.002,3253.4,3253.1,0.94823642]
[1767776128024,0.002,3253.4,3253.0,0.40223976]
[1767776128426,0.002,3253.4,3253.0,1.35047618]
[1767776129813,0.002,3253.1,3253.0,1.35047618]
[1767776130021,0.002,3253.4,3253.0,1.35047618]
[1767776132731,0.002,3253.4,3253.0,4.42454708]
[1767776133031,0.002,3253.4,3253.0,1.35047618]
[1767776135730,0.002,3253.4,3253.0,4.42454928]
[1767776136031,0.002,3253.4,3253.0,1.35047618]
[1767776136439,0.002,3253.4,3253.0,4.42447098]
[1767776136597,0.002,3253.4,3253.1,1.44195468]
[1767776137034,0.002,3253.7,3253.1,4.51591591]
[1767776137233,0.002,3253.7,3253.2,0.99950758]
[1767776138734,3.07542493,3253.7,3253.2,0.99950758]
[1767776139139,0.002,3253.7,3253.2,0.99950758]
[1767776139435,0.002,3253.7,3253.2,1.451108]
[1767776140737,0.97278844,3253.7,3253.2,0.45160042]
[1767776140917,0.002,3253.7,3253.0,0.99950758]
[1767776142310,0.002,3253.4,3253.0,0.99950758]
[1767776144250,0.002,3253.4,3253.2,0.99950758]
[1767776144413,0.002,3253.7,3253.2,0.99950758]
[1767776144616,0.806,3254.0,3253.3,0.99950758]
[1767776144833,0.806,3254.0,3253.3,1.03024559]
[1767776145044,0.806,3254.0,3253.3,0.99950758]
[1767776145654,3.88079282,3254.4,3253.3,1.03024559]
[1767776146147,0.808,3254.4,3253.3,0.99950758]
[1767776146341,0.002,3254.4,3253.5,0.99950758]
[1767776146549,3.07478961,3254.4,3253.7,0.99950758]
[1767776146949,0.97078844,3254.3,3253.7,0.99950758]
[1767776147135,0.97078844,3254.3,3253.6,0.71469226]
[1767776147632,0.97278844,3254.1,3253.6,0.71469226]
[1767776147945,0.97278844,3254.1,3253.3,4.07328115]
[1767776149327,0.97278844,3254.1,3253.4,0.99950758]
[1767776150247,4.0458391,3254.1,3253.4,0.99950758]
[1767776150751,0.002,3254.1,3253.4,0.99950758]
[1767776151051,0.002,3254.1,3253.5,0.99950758]
[1767776151353,0.002,3254.1,3253.6,0.99950758]
[1767776153954,0.97278844,3254.1,3253.5,0.40732115]
[1767776154156,0.002,3253.8,3253.5,0.40732115]
[1767776154357,0.97278844,3254.1,3253.5,0.40732115]
[1767776156144,0.97278844,3254.1,3253.5,3.48093154]
[1767776157062,0.97278844,3254.1,3253.5,0.40732115]
[1767776157423,0.97278844,3254.1,3253.5,3.48091771]
[1767776158361,0.002,3254.1,3253.6,0.34809177]
[1767776159352,0.002,3254.1,3253.6,1.34759935]
[1767776160280,0.002,3254.1,3253.6,0.99950758]
[1767776160652,0.002,3254.4,3254.0,0.98180859]
[1767776161162,0.002,3254.4,3253.8,0.98180859]
[1767776161943,0.002,3254.4,3253.8,4.08585914]
[1767776162266,0.002,3254.4,3253.8,4.05512585]
[1767776162450,0.002,3254.4,3253.9,0.40551259]
[1767776162649,0.002,3254.4,3253.9,1.39543012]
[1767776163359,0.002,3254.4,3254.0,0.98991753]
[1767776164854,0.002,3254.4,3253.9,0.40551259]
[1767776165867,0.002,3254.1,3253.9,0.40551259]
[1767776166037,0.90621274,3254.4,3253.8,3.07327356]
[1767776168050,0.90621274,3254.4,3253.7,4.06333653]
[1767776168436,0.90621274,3254.4,3253.8,0.98991753]
[1767776169284,0.002,3254.4,3253.9,4.06315272]
[1767776170545,0.002,3254.4,3253.9,0.98991753]
[1767776170755,0.002,3254.4,3253.9,1.39623964]
[1767776173070,0.90621274,3254.4,3253.9,0.40632211]
[1767776173281,0.002,3254.4,3253.9,0.40632211]
[1767776173781,0.90621274,3254.4,3253.5,0.98991753]
[1767776174077,0.90621274,3254.4,3253.5,4.06346103]
[1767776175164,0.90421274,3254.3,3253.5,4.06346103]
[1767776177546,0.90421274,3254.3,3253.8,0.001]
[1767776177747,0.002,3254.1,3253.8,0.001]
[1767776179572,0.90421274,3254.3,3253.8,0.001]
[1767776179888,0.002,3254.4,3253.8,0.41050759]
[1767776180083,0.002,3254.8,3253.9,1.02064988]
[1767776180391,1.62080736,3255.3,3254.6,0.98991753]
[1767776180744,4.6927773,3255.3,3254.6,0.98991753]
[1767776180949,1.62080736,3255.3,3254.6,0.98991753]
[1767776181190,3.07203805,3255.2,3254.6,0.98991753]
[1767776182259,3.07203805,3255.2,3254.6,0.85582653]
[1767776183391,0.90621274,3255.1,3254.4,3.07274405]
[1767776183550,0.90621274,3255.1,3254.4,3.78630505]
[1767776183951,0.002,3255.1,3254.4,4.77622258]
[1767776184162,0.002,3255.1,3254.5,0.98991753]
[1767776185283,0.002,3255.1,3254.6,0.98991753]
[1767776189802,0.002,3254.8,3254.6,0.98991753]
[1767776191307,0.002,3254.8,3254.2,3.07292097]
[1767776191510,0.002,3254.8,3254.3,0.3072921]
[1767776192206,0.002,3254.8,3254.3,3.38012431]
[1767776192408,0.002,3254.8,3254.4,3.07275723]
[1767776192707,0.95189836,3254.8,3253.9,0.92074407]
[1767776193507,0.95189836,3254.8,3253.8,0.001]
[1767776193508,0.94989836,3254.6,3253.8,0.001]
[1767776195914,4.02256697,3254.5,3253.8,0.001]
[1767776196114,0.94989836,3254.4,3253.8,0.001]
[1767776197875,3.07260906,3254.6,3253.8,0.92174407]
[1767776198076,3.07260906,3254.6,3253.8,3.99504056]
[1767776198299,3.91724243,3254.6,3253.9,0.92074407]
[1767776199207,4.86714079,3254.6,3253.9,0.92074407]
[1767776199589,0.94989836,3254.5,3253.9,0.92074407]
[1767776200002,0.94989836,3254.5,3253.8,0.001]
[1767776200311,3.07276302,3254.4,3253.8,0.001]
[1767776201520,4.02266138,3254.4,3253.8,0.001]
[1767776202019,0.94989836,3254.3,3254.1,0.001]
[1767776202216,3.07295187,3254.2,3253.8,0.001]
[1767776202407,0.94989836,3254.1,3253.3,3.07372812]
[1767776202803,3.07295187,3254.2,3253.4,0.92074407]
[1767776205093,4.02185023,3254.2,3253.5,0.92074407]
[1767776205295,0.94889836,3254.2,3253.5,0.92074407]
[1767776207396,0.94889836,3254.1,3253.4,3.07370276]
[1767776207722,3.0730194,3254.2,3253.5,0.92074407]
[1767776208122,0.94889836,3254.1,3253.4,3.07370276]
[1767776208418,0.94889836,3254.1,3253.4,0.78732742]
[1767776208618,0.94889836,3254.1,3253.3,3.07377858]
[1767776209723,3.07285745,3254.3,3253.3,0.92074407]
[1767776210018,4.02175581,3254.3,3253.3,0.92074407]
[1767776211019,7.09462839,3254.3,3253.3,0.92074407]
[1767776211395,7.09462839,3254.3,3253.4,0.92074407]
[1767776211692,7.88349027,3254.3,3253.4,0.92074407]
[1767776213623,7.88349027,3254.3,3253.6,0.001]
[1767776214010,7.88349027,3254.3,3253.6,0.92174407]
[1767776214631,0.94889836,3254.2,3253.6,0.001]
[1767776216329,4.02187156,3254.2,3253.6,0.001]
[1767776216528,0.94889836,3254.2,3253.6,0.001]
[1767776216695,4.02186463,3254.2,3253.6,0.001]
[1767776216897,0.94889836,3254.2,3253.6,0.92174407]
[1767776217839,3.07289258,3254.3,3253.6,0.92174407]
[1767776218023,3.86174017,3254.3,3253.6,0.92174407]
[1767776219900,6.93465193,3254.3,3253.6,0.92174407]
[1767776220732,3.86174017,3254.3,3253.6,0.92174407]
[1767776221735,6.93465193,3254.3,3253.6,0.92174407]
[1767776221916,3.86174017,3254.3,3253.6,0.92174407]
[1767776222103,0.65494553,3254.2,3253.6,0.92174407]
[1767776222526,1.60229028,3254.2,3253.6,0.92174407]
[1767776223044,1.60229028,3254.2,3252.5,0.001]
[1767776223045,0.94734475,3253.7,3252.5,0.001]
[1767776223335,4.49236714,3253.5,3252.7,0.96816566]
[1767776223523,0.94734475,3253.6,3252.7,0.96816566]
[1767776223726,0.94734475,3253.5,3252.7,0.96816566]
[1767776224126,0.94734475,3253.5,3252.7,4.04252541]
[1767776224332,0.94734475,3253.5,3252.7,3.07435975]
[1767776225219,0.94734475,3253.5,3253.0,0.001]
[1767776225622,0.002,3254.0,3253.0,0.96916566]
[1767776225869,0.002,3254.0,3253.5,0.98713542]
[1767776226074,3.07516093,3254.0,3253.5,0.98713542]
[1767776226753,0.002,3254.0,3253.5,0.98713542]
[1767776227252,3.07516621,3254.0,3253.5,0.98713542]
[1767776228155,0.002,3254.0,3253.5,0.98713542]
[1767776229751,0.002,3254.0,3253.6,1.37424884]
[1767776229959,0.002,3254.0,3253.6,0.96816566]
[1767776232876,0.002,3254.0,3253.7,0.96816566]
[1767776246443,0.002,3254.0,3253.4,0.96816566]
[1767776246646,0.94734475,3253.9,3253.1,3.07391978]
[1767776247054,0.94734475,3253.9,3253.1,4.04208544]
[1767776247273,0.94734475,3253.9,3253.2,1.3724742]
[1767776247876,0.94734475,3253.9,3253.2,0.40430854]
[1767776249570,0.94734475,3253.9,3253.2,1.3724742]
[1767776249767,0.94734475,3253.9,3253.2,4.446359]
[1767776250169,0.94734475,3253.9,3253.4,0.001]
[1767776250170,4.02058394,3253.9,3253.4,0.001]
[1767776250397,0.002,3253.7,3253.4,0.001]
[1767776254400,0.002,3253.7,3253.4,0.44573643]
[1767776257401,0.002,3253.7,3253.4,0.001]
[1767776258101,0.9537547,3253.7,3253.0,0.90267824]
[1767776258308,0.9537547,3253.7,3253.0,0.001]
[1767776258517,0.9517547,3253.5,3253.0,0.001]
[1767776258671,1.12753017,3253.4,3253.0,0.001]
[1767776259201,3.07380198,3253.3,3253.0,0.001]
[1767776260884,4.02555668,3253.3,3252.5,0.90267824]
[1767776261495,3.07380198,3253.3,3252.6,0.90167824]
[1767776266207,4.02555668,3253.3,3252.6,0.90167824]
[1767776266511,0.7275065,3253.2,3252.6,0.90167824]
[1767776267330,4.02555668,3253.3,3252.6,0.90167824]
[1767776274128,4.02555668,3253.3,3252.9,0.001]
[1767776274995,3.07380198,3253.3,3252.9,0.90267824]
[1767776275535,3.07380198,3253.3,3252.9,0.001]
[1767776276797,4.02555668,3253.3,3252.9,0.001]
[1767776276999,0.72750467,3253.2,3252.9,0.001]
[1767776277797,1.67925937,3253.2,3252.9,0.001]
[1767776278635,3.07399096,3253.1,3252.5,0.90267824]
[1767776278931,4.02574566,3253.1,3252.5,0.90267824]
[1767776279322,4.02574566,3253.1,3252.5,0.001]
[1767776279522,0.92820107,3252.9,3252.5,0.001]
[1767776279836,0.78271587,3253.0,3252.5,0.001]
[1767776280000,4.00219203,3253.1,3252.5,0.001]
[1767776280322,0.92820107,3253.0,3252.5,0.001]
[1767776280921,0.92820107,3252.9,3252.5,0.001]
[1767776281239,3.07411312,3253.0,3252.5,0.001]
[1767776281610,7.07642731,3253.0,3252.5,0.001]
[1767776281810,1.65458802,3252.9,3252.0,0.967965]
[1767776282724,0.70764273,3252.9,3252.0,0.967965]
[1767776283038,3.78188878,3252.9,3252.1,0.967965]
[1767776283243,0.94694529,3252.8,3252.1,0.967965]
[1767776285233,3.07436898,3252.7,3252.1,0.967965]
[1767776285546,3.85469265,3252.7,3252.1,0.967965]
[1767776286038,3.85469265,3252.7,3252.4,0.001]
[1767776288524,4.80163794,3252.7,3252.4,0.001]
[1767776288843,3.85469265,3252.7,3252.4,0.001]
[1767776289648,6.92906163,3252.7,3252.4,0.001]
[1767776289811,0.69290616,3252.6,3252.1,0.967965]
[1767776291422,3.07455803,3252.5,3252.1,0.967965]
[1767776294049,0.69290616,3252.6,3252.1,0.967965]
[1767776294350,0.94694529,3252.8,3252.1,0.967965]
[1767776294844,3.07436898,3252.7,3252.1,0.967965]
[1767776296018,7.09530521,3252.9,3252.1,0.967965]
[1767776296355,0.94694529,3252.8,3252.1,0.967965]
[1767776297030,3.07436898,3252.7,3252.1,0.967965]
[1767776297231,3.78393534,3252.7,3252.1,0.967965]
[1767776299623,3.78393534,3252.7,3252.4,0.001]
[1767776301263,6.85830432,3252.7,3252.4,0.001]
[1767776301426,3.78393534,3252.7,3252.4,0.001]
[1767776302050,6.85830432,3252.7,3252.1,0.967965]
[1767776302349,0.78052496,3252.6,3252.1,0.967965]
[1767776302660,0.78052496,3252.6,3251.8,0.967965]
[1767776303761,3.07455803,3252.5,3251.8,0.967965]
[1767776305357,3.07455803,3252.5,3251.8,0.96608884]
[1767776306952,3.07455803,3252.5,3251.7,3.07730941]
[1767776306953,3.07450271,3252.6,3251.9,0.967965]
[1767776310854,3.07450271,3252.6,3252.1,0.002]
[1767776311058,3.78408528,3252.6,3252.1,0.002]
[1767776315756,0.93988943,3252.5,3252.1,0.002]
[1767776315966,3.78408528,3252.6,3252.1,0.002]
[1767776316468,7.79847742,3252.6,3252.1,0.002]
[1767776316970,0.93988943,3252.5,3252.1,0.002]
[1767776317136,0.93988943,3252.4,3252.1,0.002]
[1767776317562,0.93988943,3252.4,3251.8,0.002]
[1767776318135,0.93988943,3252.3,3251.8,0.002]
[1767776320368,3.07473066,3252.4,3251.8,0.90222125]
[1767776322472,4.01445396,3252.5,3251.8,0.90222125]
[1767776322678,7.94041385,3252.5,3251.8,0.90222125]
[1767776323472,0.93988943,3252.4,3251.8,0.90222125]
[1767776323977,0.93988943,3252.4,3251.8,0.002]
[1767776324282,0.93988943,3252.4,3252.1,0.001]
[1767776324456,0.002,3252.3,3251.8,0.002]
[1767776324644,3.0767471,3252.3,3251.8,0.002]
[1767776325971,9.39100727,3252.3,3251.6,0.90022125]
[1767776326280,12.46575437,3252.3,3251.6,0.90022125]
[1767776327949,9.39100727,3252.3,3251.6,0.90022125]
[1767776328465,4.89150762,3252.3,3251.6,0.90022125]
[1767776328776,3.95161819,3252.3,3251.6,0.90022125]
[1767776329186,7.02636529,3252.3,3251.6,0.90022125]